Cogmind - Beta 16 @@@ ROGUE MODE // 2026.01.29 @ 19:36:22 Player: Warped Result: Destroyed by PL-16R(j) with Overtuned Pulse Rifle Performance ------------- Evolutions (0) 0 Regions Visited (3) 600 Robots Destroyed (18) 90 Value Destroyed (437) 437 Prototype IDs (6) 120 Alien Tech Used (0) 0 Bonus (737) 737 TOTAL SCORE: 1984 Bonus ------- Registered with UFD 300 Met Optimus in HQ 500 Friendly Fire -63 Cogmind --------- Core Integrity 0/250 Matter 271/300 Energy 95/100 System Corruption 0% Temperature Cool (27) Movement Treading (480) Ox4 Location -7/Scraptown Parts ------- > --- POWER (1) -------- Subdweller Power Source > --- PROPULSION (2) --- Improved Treads Improved Treads > --- UTILITY (2) ------ Humpback > --- WEAPON (2) ------- Improved Light Cannon Battle Cannon > --- INVENTORY (35) --- Scrap Suit Scrap Suit Targeting Computer Scrap Shield Peak State ------------ > --- POWER ------------ Light Ion Engine > --- PROPULSION ------- Improved Treads Improved Treads > --- UTILITY ---------- Small Storage Unit Improved Terrain Scanner > --- WEAPON ----------- Autogun Autogun > --- INVENTORY -------- Light Ion Engine Light Treads Light Treads Improved Treads Improved Treads Hardened Light Armor Plating Autogun Autogun [Rating: 14] Favorites ----------- Power Subdweller Power Source Engine Subdweller Power Source Propulsion Improved Treads Treads Improved Treads Utility Hardened Light Armor Plating Device Improved Terrain Scanner Storage Medium Storage Unit Protection Hardened Light Armor Plating Weapon Improved Light Cannon Energy Gun Small Laser Ballistic Gun Autogun Ballistic Cannon Improved Light Cannon Build | -11 -10 -10 -7 ------- Run | Yrd Mat Sub Scr Slots Evolved . | . . . . Power . | . . . . Propulsion . | . . . . Utility . | . . . . Weapon . | . . . . Parts Attached 21 | 7 11 2 1 Power 4 | 1 2 1 . Engine 4 | 1 2 1 . Core . | . . . . Reactor . | . . . . Propulsion 4 | 2 2 . . Treads 4 | 2 2 . . Leg . | . . . . Wheel . | . . . . Hover . | . . . . Flight . | . . . . Utility 6 | 2 3 . 1 Device 1 | 1 . . . Storage 3 | 1 1 . 1 Processor . | . . . . Hackware . | . . . . Protection 2 | . 2 . . Artifact . | . . . . Weapon 7 | 2 4 1 . Energy Gun 2 | 2 . . . Energy Cannon . | . . . . Ballistic Gun 2 | . 2 . . Ballistic Cannon 3 | . 2 1 . Launcher . | . . . . Special Weapon . | . . . . Impact Weapon . | . . . . Slashing Weapon . | . . . . Piercing Weapon . | . . . . Special Melee Weapon . | . . . . Unidentified Prototypes . | . . . . Parts Lost . | . . . . Power . | . . . . Propulsion . | . . . . Utility . | . . . . Weapon . | . . . . Highest Loss Streak . | . . . . To Critical Strikes . | . . . . Average Backups 7 | 2 9 8 7 Power . | . . . . Propulsion 1 | 1 2 2 1 Utility 3 | . 3 4 3 Weapon 1 | . 2 2 1 Tool/Special . | . . . . Unused Backups 19 | . 6 4 9 Power 1 | . 1 . . Propulsion 4 | . 2 . 2 Utility 9 | . 1 3 5 Weapon 5 | . 2 1 2 Tool/Special . | . . . . Average Slot Usage (%) 99 | . 99 100 99 Engine 14 | . 14 14 14 Treads 27 | . 27 28 28 Storage 14 | . 14 14 14 Protection 13 | . 12 14 13 Ballistic Gun 2 | . 6 . . Ballistic Cannon 25 | . 19 28 28 Peak Build Rating 14 | 9 14 14 14 Average Rating 12 | 8 12 13 13 On Entrance 9 | . 9 13 14 Avg Prop Armor Cover (%) . | . . . . Naked Turns . | . . . . Heaviest Build 212 | 11 26 27 212 Greatest Support 46 | 40 46 46 46 Greatest Overweight (x) 4 | . . . 4 Average Overweight (x) . | . . . . Largest Inventory Capacity 35 | 8 10 10 35 Average Capacity 9 | 7 9 10 10 Most Carried 10 | 3 10 10 10 Average Carried 8 | 2 9 9 9 Final Capacity 35 | 8 10 10 35 Final Carried 10 | 3 10 10 7 Class Distribution -------------------- 98% | Mutant Dominant Class ---------------- Mutant | -10/Materials Mutant | -10/Subcaves Mutant | -7/Scraptown Resources | -11 -10 -10 -7 ----------- Run | Yrd Mat Sub Scr Matter Collected 902 | 243 428 134 97 Remotely . | . . . . Salvage Created 489 | 16 374 29 70 Parts 39 | 3 27 4 5 Haulers Intercepted 2 | . 2 . . Recyclers Shooed . | . . . . Parts Field Recycled . | . . . . Retrieved Matter . | . . . . Parts Self-Destructed . | . . . . Prevented . | . . . . Parts Restored . | . . . . Kills | -11 -10 -10 -7 ------- Run | Yrd Mat Sub Scr Combat Hostiles Destroyed 12 | . 10 1 1 Guns 8 | . 8 . . Cannons 4 | . 2 1 1 Classes Destroyed 8 | 1 5 1 1 Worker 1 | . 1 . . Tunneler 1 | 1 . . . Hauler 2 | . 2 . . Watcher 2 | . 2 . . Swarmer 3 | . 3 . . Grunt 7 | . 7 . . Subdweller 1 | . . 1 . Scrapper 1 | . . . 1 Best Kill Streak 5 | 1 5 1 1 Combat Bots Only 5 | . 5 1 1 Max Kills in Single Turn 1 | 1 1 1 1 Gunslinging . | . . . . Exploded . | . . . . Melee . | . . . . Uniques/NPCs Destroyed . | . . . . Combat | -11 -10 -10 -7 -------- Run | Yrd Mat Sub Scr Hostile Shots Fired 84 | . 53 10 21 Missed 21 | . 14 1 6 Hits 63 | . 39 9 15 Projectile 63 | . 39 9 15 Critical Strikes 5 | . . . 5 Damage Taken 1104 | . 468 206 430 Core 259 | . 102 43 114 Absorbed by Shields . | . . . . Regen/Repaired (Parts) 91 | . 91 . . Core Remaining (%) 100 | 100 . . . Volleys Fired 66 | 2 49 8 7 Largest 2 | 2 2 2 2 Hottest 80 | 80 80 66 66 Shots Fired 132 | 4 98 16 14 Gun 68 | 4 64 . . Cannon 64 | . 34 16 14 Launcher . | . . . . Special . | . . . . Kinetic 124 | . 94 16 14 Thermal 8 | 4 4 . . Explosive . | . . . . Electromagnetic . | . . . . Robot Hit Streak 11 | 2 11 6 3 Robot Miss Streak 6 | 1 6 2 2 Penetration Max . | . . . . Secondary Targets 2 | . 2 . . Max Gunslinging Chain 1 | . 1 . . Shots Hit Robots 78 | 2 57 11 8 Core Hits 25 | 1 20 1 3 Critical Kills . | . . . . Critical Parts Destroyed . | . . . . Critical Strikes . | . . . . Melee Attacks . | . . . . Impact . | . . . . Slashing . | . . . . Piercing . | . . . . Sneak Attacks . | . . . . Combat Hostiles . | . . . . Follow-up Attacks . | . . . . Damage Inflicted 1520 | 21 1042 259 198 Guns 635 | 21 614 . . Cannons 885 | . 428 259 198 Explosions . | . . . . Melee . | . . . . Ramming . | . . . . Kinetic 1487 | . 1030 259 198 Thermal 33 | 21 12 . . Explosive . | . . . . Electromagnetic . | . . . . Impact . | . . . . Slashing . | . . . . Piercing . | . . . . Highest Corruption . | . . . . Average Corruption . | . . . . Corruption Purged . | . . . . Corruption Blocked . | . . . . Overload Shots . | . . . . Overflow Damage 6 | . 6 . . Projectiles 6 | . 6 . . Explosions . | . . . . Melee . | . . . . Knockbacks 8 | . 2 5 1 Impact . | . . . . Kinetic 8 | . 2 5 1 Secondary . | . . . . Self-Inflicted Damage . | . . . . Shots . | . . . . Rammed . | . . . . Targets Rammed . | . . . . Kicked . | . . . . Crushed . | . . . . Highest Temperature 231 | 36 231 . 23 Average Temperature 49 | 20 56 . 10 Received Heat Transfer 478 | . 186 . 292 Siege Activations . | . . . . Martial Activations . | . . . . Shielding Activations . | . . . . Robots Disrupted . | . . . . Combat Hostiles . | . . . . Robots Corrupted . | . . . . Combat Hostiles . | . . . . Parts Fried . | . . . . Impact Corruptions . | . . . . Robots Melted . | . . . . Combat Hostiles . | . . . . Parts Melted 1 | . . . 1 Heat Transferred 75 | 50 25 . . Parts Sabotaged . | . . . . Parts Stolen . | . . . . Parts Stripped . | . . . . Power Chain Reactions . | . . . . Alert | -11 -10 -10 -7 ------- Run | Yrd Mat Sub Scr Maximum Alert Level . | . . . . Low Security (%) 100 | 100 100 . . Level 1 . | . . . . Level 2 . | . . . . Level 3 . | . . . . Level 4 . | . . . . Level 5 . | . . . . High Security . | . . . . Max Security . | . . . . Peak Influence 121 | 5 121 . . Initial . | . . . . Average 5 | . 9 . . Influence Increases 323 | 5 318 . . Destroy 0b10 Robot/C 200 | . 200 . . Destroy 0b10 Robot/NC 30 | 5 25 . . Destroy Leader 58 | . 58 . . Successful Hack 15 | . 15 . . Disable Machine 15 | . 15 . . Destroy Structure 5 | . 5 . . Influence Decreases 323 | 5 318 . . Time Decay 212 | 5 207 . . Purge Threat 111 | . 111 . . Squads Dispatched 2 | . 2 . . Investigation . | . . . . Extermination . | . . . . Reinforcement 2 | . 2 . . Assault . | . . . . Garrison . | . . . . Intercept . | . . . . Searches Triggered . | . . . . Construction Impeded . | . . . . Haulers Reinforced . | . . . . Active Scanning Responses . | . . . . Cargo Convoy Interrupts . | . . . . Stealth | -11 -10 -10 -7 --------- Run | Yrd Mat Sub Scr Distress Signals . | . . . . Communications Jammed . | . . . . Distress Signals . | . . . . Times Spotted 51 | . 24 9 18 Peak Tracking Total 11 | . 4 5 11 Tactical Retreats . | . . . . Traps | -11 -10 -10 -7 ------- Run | Yrd Mat Sub Scr Traps Triggered 1 | . 1 . . Indirectly . | . . . . Trap Hack Attempts . | . . . . Triggered . | . . . . Disarmed . | . . . . Reprogrammed . | . . . . Reused . | . . . . Traps Extracted . | . . . . Installed . | . . . . Triggered . | . . . . Machines | -11 -10 -10 -7 ---------- Run | Yrd Mat Sub Scr Machines Disabled 1 | . 1 . . Max in Single Turn 1 | . 1 . . Machines Repaired . | . . . . Machines Dismantled . | . . . . Machines Sabotaged . | . . . . Overloaded Fab Kills . | . . . . Hacking | -11 -10 -10 -7 --------- Run | Yrd Mat Sub Scr Machines Accessed 19 | . 7 . 12 Terminals 4 | . 4 . . Fabricators . | . . . . Repair Stations 1 | . 1 . . Recycling Units 2 | . 2 . . Scanalyzers . | . . . . Garrison Access . | . . . . Total Hacks 96 | . 19 . 77 Successful 88 | . 11 . 77 Failed 8 | . 8 . . Catastrophic . | . . . . Database Lockouts . | . . . . Manual 4 | . 4 . . Terminals 11 | . 11 . . Fabricators . | . . . . Repair Stations 4 | . 4 . . Recycling Units 4 | . 4 . . Scanalyzers . | . . . . Garrison Access . | . . . . Terminal Hacks 79 | . 2 . 77 Record 76 | . . . 76 Unreport Threat 1 | . 1 . . Zone Layout 1 | . 1 . . Proto ID Catalog 1 | . . . 1 Fabricator Hacks . | . . . . Repair Station Hacks 3 | . 3 . . Scan Component 2 | . 2 . . Repair 1 | . 1 . . Recycling Unit Hacks 3 | . 3 . . Retrieve Components 3 | . 3 . . Scanalyzer . | . . . . Garrison Access Hacks . | . . . . Unauthorized Hacks 3 | . 3 . . Terminals 3 | . 3 . . Botnet 3 | . 3 . . Fabricators . | . . . . Repair Stations . | . . . . Recycling Units . | . . . . Scanalyzers . | . . . . Garrison Access . | . . . . Data Cores Recovered . | . . . . Used . | . . . . Hacking Detections 4 | . 4 . . Full Trace Events 1 | . 1 . . Feedback Events . | . . . . Feedback Blocked . | . . . . Robot Schematics Acquired . | . . . . Robots Built . | . . . . Authchips . | . . . . Time . | . . . . Total Robot Build Rating . | . . . . Part Schematics Acquired . | . . . . Parts Built . | . . . . Authchips . | . . . . Time . | . . . . Total Part Build Rating . | . . . . Part Studies Acquired . | . . . . Parts Repaired 1 | . 1 . . Time 32 | . 32 . . Parts Recycled . | . . . . Recycled Matter . | . . . . Retrieved Matter . | . . . . Retrieved Components 20 | . 20 . . Parts Scanalyzed . | . . . . Part Schematics Acquired . | . . . . Parts Damaged . | . . . . Bothacking | -11 -10 -10 -7 ------------ Run | Yrd Mat Sub Scr Used RIF Installer . | . . . . Robots Hacked . | . . . . Non-combat . | . . . . Combat . | . . . . Robot Hacks Applied . | . . . . Relay Couplers Released . | . . . . Fabnet Peak Effective % . | . . . . Robots Rewired . | . . . . Allies Hacked . | . . . . Hacks Repelled . | . . . . Allies | -11 -10 -10 -7 -------- Run | Yrd Mat Sub Scr Total Allies . | . . . . Largest Group . | . . . . Highest-Rated Group . | . . . . Highest-Rated Ally . | . . . . Total Orders . | . . . . Ally Attacks . | . . . . Total Damage . | . . . . Kills . | . . . . Allies Corrupted . | . . . . Allies Melted 7 | . . . 7 Intel | -11 -10 -10 -7 ------- Run | Yrd Mat Sub Scr Active Infowar (turns) 1183 | 1042 141 . . Terrain 1183 | 1042 141 . . Robot Analysis Total . | . . . . Derelict Logs Recovered 3 | . . 1 2 Drone Launches . | . . . . Drone Recoveries . | . . . . Exploration | -11 -10 -10 -7 ------------- Run | Yrd Mat Sub Scr Turns Passed 5745 | 1109 1493 521 2622 Spaces Moved 2843 | 240 714 305 1584 Core 3 | 3 . . . Treads 2840 | 237 714 305 1584 Legs . | . . . . Wheels . | . . . . Hover . | . . . . Flight . | . . . . Fastest Speed 50 | 50 160 160 160 Average Speed 160 | 158 160 160 161 Slowest Speed 480 | 160 160 160 480 Overloaded Moves . | . . . . Propulsion Burnouts . | . . . . Robots Hopped . | . . . . Potential Cave-ins . | . . . . Cave-ins Triggered . | . . . . Exploration Rate (%) 54 | 25 81 22 89 Regions Visited 3 Branch Regions 2 Pre-discovered Areas 1 | . . 1 . Known Exits Taken . | . . . . Unknown Exits Taken 3 | 1 1 1 . Scrap Searched . | . . . . Spaces Dug . | . . . . Terrain Destroyed 4 | . 4 . . Melee . | . . . . Projectile 4 | . 4 . . AOE . | . . . . Terrain Rammed . | . . . . Walls Destroyed . | . . . . Machines Disabled . | . . . . Actions | -11 -10 -10 -7 --------- Run | Yrd Mat Sub Scr Total 3900 | 961 983 324 1632 Wait 921 | 710 173 2 36 Move 2840 | 239 713 304 1584 Hop . | . . . . Pick Up 25 | 3 18 2 2 Fast Attach 14 | 7 5 2 . Attach 1 | . . . 1 Detach . | . . . . Swap 7 | . 7 . . Drop 26 | . 18 6 2 Fire 66 | 2 49 8 7 Melee . | . . . . Ram . | . . . . Kick . | . . . . Crush . | . . . . Escape Stasis . | . . . . Rewire . | . . . . Trap . | . . . . Miscellaneous . | . . . . Route ------- -11/Scrapyard -10/Materials (discovered 4 exits: [*Mat x2] / [*Min] / [*Sub]) -10/Subcaves -7/Scraptown (discovered 2 exits: [*Fac x2]) History --------- Turn | Location | Event 14 | -11/Scrapyard | Discovered new exit (range 15) 1110 | -11/Scrapyard | Entered Materials 1111 | -10/Materials | Build established: Mutant 2015 | -10/Materials | Discovered new exit (range 7) 2261 | -10/Materials | Repaired Imp. Treads 2328 | -10/Materials | Discovered new exit (range 8) 2446 | -10/Materials | Discovered new exit (range 13) 2585 | -10/Materials | Discovered new exit (range 9) 2603 | -10/Materials | Entered Subcaves 2604 | -10/Subcaves | Approached by a straggling Scientist 2636 | -10/Subcaves | Learned location of Zion (-6) 2696 | -10/Subcaves | Shifting Twisted Machinery released Flamer 2702 | -10/Subcaves | Shifting Twisted Machinery released Scrap Shield 2703 | -10/Subcaves | Shifting Twisted Machinery released Battle Cannon 2720 | -10/Subcaves | Ambushed by swarm of Subdwellers 2744 | -10/Subcaves | Core integrity fell below 50% 2766 | -10/Subcaves | Shifting Twisted Machinery released Battle Cannon 2940 | -10/Subcaves | A swath of the cavern ceiling suddenly collapsed 3111 | -10/Subcaves | Scientist uncovered a shortcut to Scraptown 3124 | -10/Subcaves | Entered Scraptown 3257 | -7/Scraptown | Heard Great Nut preacher, LISTEN AND RECITE! 3646 | -7/Scraptown | Visited Cyclists 3697 | -7/Scraptown | Visited Awakened 3750 | -7/Scraptown | Visited Fellowship of the Rings 3795 | -7/Scraptown | Visited UFD Registry 3795 | -7/Scraptown | Registered with UFD as "Steeltank" 3822 | -7/Scraptown | Visited Assassins FH 4076 | -7/Scraptown | Visited Spacefarers 4162 | -7/Scraptown | Visited Symbiants 4202 | -7/Scraptown | Visited Cave Peace 4295 | -7/Scraptown | Scanned Subdweller tech in exchange for log data 4298 | -7/Scraptown | Learned location of 1 exit from Factory 4300 | -7/Scraptown | Learned Research non-interactive machine intel 4317 | -7/Scraptown | Discovered new exit (range 11) 4516 | -7/Scraptown | Entered Cyclist Reading Room 4642 | -7/Scraptown | Visited Modified Component R&D 4725 | -7/Scraptown | Visited Science Guys 4796 | -7/Scraptown | Visited Abandonware Association 4828 | -7/Scraptown | Learned abandonware demo "POISON.EXE" 4828 | -7/Scraptown | Learned abandonware demo "REBOOT5.EXE" 4866 | -7/Scraptown | Visited Curators Association 4984 | -7/Scraptown | Visited Observation Area 5060 | -7/Scraptown | Visited Research Penetration Think Tank 5093 | -7/Scraptown | Visited Botcube Research 5144 | -7/Scraptown | Visited Supply Room 5170 | -7/Scraptown | Visited Junk Cannon Lab 5234 | -7/Scraptown | Visited Scrapoid Pod Storage 5391 | -7/Scraptown | Met Optimus 5391 | -7/Scraptown | Accepted into 0bPrime 5600 | -7/Scraptown | Civil war broke out across Scraptown 5631 | -7/Scraptown | Discovered new exit (range 10) 5679 | -7/Scraptown | Lost 12 allies 5687 | -7/Scraptown | Core integrity fell below 20% 5700 | -7/Scraptown | Found Scrap Suit 5706 | -7/Scraptown | Found Scrap Suit 5737 | -7/Scraptown | Optimus destroyed in the chaos of civil war 5746 | -7/Scraptown | Destroyed by PL-16R(j) with Overtuned Pulse Rifle Last Messages --------------- [Achievement: Plot Armor] Critical hit (Burn: +50). Slug penetrates M7-3FG(j). N6-5LF(j) heat spikes uncontrollably. Acquired Scrap Suit. M7-3FG(j) destroyed. Acquired Scrap Suit. Slug penetrates N6-5LF(j). N6-5LF(j) suffers critical hit (Destroy). N6-5LF(j) destroyed. M8-ZC8(j) switches sides: "Sorry everyone but I think they're right!" WD-WU6(j) suffers critical hit (Burn). 7J-AZF(j): "Down with Optimus!" ANNOUNCEMENT: The traitor Optimus has been dealt with. Put down any remaining collaborators. M8-ZC8(j) destroyed. Mak. Salvage Targeting Computer melted. WD-WU6(j) destroyed. Supplies damaged. Map ----- +----------------------------------------------------+ | | | | | | | | | | | | | | | | | | | | | ?????????????????????????????????????????????????? | | ?????????????????????????????????????????????????? | | ?????????????????????????????????????????????????? | | ?????????????????????????????????????????????????? | | ?????????????????????????????????????????????????? | | ?????????????????????????????????????????????????? | | ?????????????????????????????????????????????????? | | ?????????????????????????????????????????????????? | | ?????????????????????????????????????????????????? | | ?????????????????????????????????????????????????? | | ?????????????????????????????????????????????????? | | ?????????????????????????????????????????####????? | | ????????????????????????????????????????#"""##???# | | ?????????###################???####????#="%%&## | | ?????????"""##"""##""|##"""#??## ##??#=#[